bitfinex-derivatives/quotes_ETHF0:USTF0_20241013
["timestamp","ask_amount","ask_price","bid_price","bid_amount"]
[1728860270568,0.40533,2467.7,2467.6,2.13255]
[1728860272070,1.40578,2467.9,2467.6,1.7272]
[1728860272271,0.79781,2467.9,2467.8,1.71532]
[1728860274169,0.79781,2467.9,2467.8,1.31]
[1728860274568,0.79781,2467.9,2467.8,1.71532]
[1728860274776,0.79781,2467.9,2467.8,1.31]
[1728860275268,0.79781,2467.9,2467.8,1.71532]
[1728860275968,0.79781,2467.9,2467.8,1.31]
[1728860276567,0.79781,2467.9,2467.5,3.2078]
[1728860276568,1.7025,2467.9,2467.5,3.2078]
[1728860276771,1.7025,2467.9,2467.6,0.40535]
[1728860276772,0.40533,2467.7,2467.6,0.40535]
[1728860276969,1.0133,2467.8,2467.5,3.5963]
[1728860276970,0.40532,2467.8,2467.7,1.31]
[1728860281671,0.40532,2467.8,2467.7,1.71533]
[1728860281877,0.3925,2467.9,2467.8,0.40532]
[1728860281878,0.79781,2467.9,2467.8,0.40532]
[1728860282074,0.79781,2467.9,2467.8,1.7245]
[1728860283183,0.79781,2467.9,2467.8,0.4145]
[1728860283481,0.79781,2467.9,2467.8,0.81982]
[1728860284782,0.79781,2467.9,2467.8,0.4145]
[1728860285181,0.79781,2467.9,2467.8,0.81982]
[1728860285681,0.79781,2467.9,2467.8,0.4145]
[1728860286276,0.79781,2467.9,2467.5,4.65947802]
[1728860286277,5.7545,2467.9,2467.5,4.65947802]
[1728860286578,5.7545,2467.9,2467.5,0.3885]
[1728860286579,0.40535,2467.6,2467.5,0.3885]
[1728860286780,0.40535,2467.6,2467.5,1.6985]
[1728860287377,0.40535,2467.6,2467.5,0.3885]
[1728860290377,1.71535,2467.6,2467.5,0.3885]
[1728860290683,0.40536,2467.5,2467.4,1.733]
[1728860290888,0.80346,2467.5,2467.4,1.733]
[1728860291594,0.80346,2467.5,2467.4,2.13838]
[1728860291786,2.11346,2467.5,2467.4,0.423]
[1728860293078,2.11346,2467.5,2467.4,0.82838]
[1728860293384,0.80346,2467.5,2467.4,2.13838]
[1728860294083,0.3981,2467.5,2467.4,2.13838]
[1728860294288,0.40536,2467.6,2467.5,0.40536]
[1728860294485,0.40536,2467.6,2467.5,1.71536]
[1728860294687,0.40536,2467.6,2467.5,1.31]
[1728860295287,0.40536,2467.6,2467.5,1.71536]
[1728860295784,0.40534,2467.7,2467.6,0.40533]
[1728860295983,0.40534,2467.7,2467.6,1.71533]
[1728860297097,2.72578,2467.9,2467.6,1.31]
[1728860297393,2.72578,2467.9,2467.4,0.423]
[1728860297394,0.4025,2467.9,2467.7,1.7295]
[1728860297586,0.4025,2467.9,2467.8,0.3983]
[1728860297788,0.4025,2467.9,2467.8,1.7083]
[1728860298099,0.80781,2467.9,2467.8,2.11362]
[1728860298392,0.4025,2467.9,2467.8,2.11362]
[1728860298593,2.10465266,2468.1,2467.8,5.7603]
[1728860298799,0.40527,2468.1,2468.0,1.71527]
[1728860299298,0.4053,2468.0,2467.9,1.31]
[1728860300088,0.4053,2468.0,2467.9,1.7153]
[1728860302394,1.31,2468.0,2467.8,0.3983]
[1728860302589,1.7153,2467.9,2467.8,0.80362]
[1728860302786,0.804,2467.9,2467.8,1.7083]
[1728860305103,0.804,2467.9,2467.8,2.11362]
[1728860306585,0.804,2467.9,2467.8,1.7083]
[1728860307392,0.804,2467.9,2467.8,2.24035317]
[1728860308494,0.804,2467.9,2467.8,1.83503316]
[1728860309290,0.804,2467.9,2467.8,1.83503309]
[1728860310096,0.804,2467.9,2467.8,2.24035309]
[1728860310297,2.10465266,2468.0,2467.8,1.83503309]
[1728860310501,0.40529,2468.0,2467.9,1.84202736]
[1728860312404,0.40529,2468.0,2467.9,1.84202804]
[1728860313205,0.40529,2468.0,2467.9,1.7153]
[1728860313505,0.40529,2468.0,2467.9,1.84202842]
[1728860313803,0.40529,2468.0,2467.9,1.31]
[1728860314003,0.4053,2467.9,2467.8,2.11361]
[1728860314304,0.4053,2467.9,2467.8,2.3951849]
[1728860314497,0.3972,2468.0,2467.9,0.4053]
[1728860314498,0.80249,2468.0,2467.9,0.4053]
[1728860314697,0.80249,2468.0,2467.9,1.84203096]
[1728860315501,0.80249,2468.0,2467.9,2.26393096]
[1728860316004,0.40529,2468.0,2467.9,2.26393096]
[1728860316306,5.31245266,2468.2,2468.1,0.40527]
[1728860316504,2.90696266,2468.5,2468.1,6.0652909]
[1728860316699,0.80231,2468.5,2468.4,1.71522]
[1728860317799,0.80231,2468.5,2468.4,1.31]
[1728860318203,0.80231,2468.5,2468.4,1.43670159]
[1728860318404,0.80231,2468.5,2468.4,1.43670208]
[1728860318603,0.80231,2468.5,2468.4,1.31]
[1728860318797,0.80231,2468.5,2468.4,1.43670161]
[1728860318999,0.80231,2468.5,2468.4,1.43670241]
[1728860319199,0.80231,2468.5,2468.4,1.31]
[1728860320406,0.80231,2468.5,2468.4,1.71522]
[1728860320609,0.80231,2468.5,2468.4,1.31]
[1728860321308,1.7071,2468.5,2468.3,1.31]
[1728860321617,1.7071,2468.5,2468.4,1.31]
[1728860321618,0.3971,2468.5,2468.4,1.31]
[1728860321809,0.8023,2468.5,2468.4,1.71522]
[1728860322412,1.7071,2468.5,2468.3,1.31]
[1728860322612,0.40522,2468.4,2468.3,1.31]
[1728860322811,0.40523,2468.3,2468.2,2.1244]
[1728860326016,0.40523,2468.3,2468.2,2.52965]
[1728860332117,0.40523,2468.3,2468.2,2.1244]
[1728860333027,0.40523,2468.3,2467.8,1.06317802]
[1728860333028,0.4053,2467.9,2467.8,0.4053]
[1728860333317,1.7153,2467.9,2467.8,0.4053]
[1728860333824,0.4053,2467.9,2467.8,1.7153]
[1728860334820,1.7033,2468.0,2467.8,1.31]
[1728860335022,0.4053,2467.9,2467.8,1.7153]
[1728860339515,1.7033,2468.0,2467.8,1.31]
[1728860339719,0.40528,2468.1,2467.9,1.31]
[1728860339922,0.79055,2468.3,2468.2,0.40525]
[1728860340116,0.79055,2468.3,2468.2,1.31]
[1728860340423,0.40525,2468.2,2468.1,2.10906]
[1728860340622,1.6953,2468.3,2468.1,1.7038]
[1728860340824,2.10054,2468.3,2468.2,0.40525]
[1728860341130,0.40525,2468.2,2468.1,2.10906]
[1728860341628,2.10054,2468.3,2468.2,0.40525]
[1728860346332,1.6953,2468.3,2468.1,1.7038]
[1728860346534,0.40525,2468.2,2468.1,2.10906]
[1728860347522,1.71525,2468.2,2468.1,0.3938]
[1728860347725,1.71525,2468.2,2468.1,0.79907]
[1728860348228,1.71525,2468.2,2468.1,0.3938]
[1728860348435,0.40527,2468.1,2468.0,0.384]
[1728860348633,1.71527,2468.1,2468.0,0.384]
[1728860349933,1.71527,2468.1,2468.0,2.09928]
[1728860349934,0.40527,2468.1,2468.0,2.09928]
[1728860350837,0.40527,2468.1,2468.0,1.694]
[1728860351537,0.40527,2468.1,2468.0,2.09928]
[1728860351743,0.40527,2468.1,2468.0,1.694]
[1728860352034,0.40527,2468.1,2468.0,2.09928]
[1728860352732,0.40527,2468.1,2468.0,2.22600111]
[1728860354337,0.40523,2468.3,2468.2,0.40524]
[1728860354537,0.40523,2468.3,2468.2,1.84196111]
[1728860355329,0.40523,2468.3,2468.2,1.84194798]
[1728860355634,0.40523,2468.3,2468.2,1.71524]
[1728860355836,0.40523,2468.3,2468.2,1.84194823]
[1728860357035,0.78783,2468.4,2468.3,0.40523]
[1728860357232,0.78783,2468.4,2468.3,0.81993]
[1728860358735,2.09783,2468.4,2468.3,0.4147]
[1728860358931,0.40525,2468.2,2468.1,2.10566]
[1728860359137,0.40525,2468.2,2468.1,2.23237644]
[1728860359334,0.40525,2468.2,2468.1,1.82711644]
[1728860359531,0.40525,2468.2,2468.1,0.51711644]
[1728860359834,0.40525,2468.3,2468.2,0.40524]
[1728860360532,0.40525,2468.3,2468.2,0.53195273]
[1728860360933,4.81031266,2468.4,2468.1,1.7004]
[1728860361139,0.40525,2468.2,2468.1,2.10566]
[1728860361338,0.40525,2468.2,2468.1,2.38718644]
[1728860361732,0.40525,2468.2,2468.1,2.3871719]
[1728860361939,0.40525,2468.2,2468.1,2.23237404]
[1728860362242,0.40525,2468.2,2468.1,0.53197404]
[1728860363438,0.40525,2468.2,2468.1,0.40526]
[1728860363632,0.40525,2468.2,2468.1,0.53197325]
[1728860366842,1.71525,2468.2,2468.1,0.12671325]
[1728860367753,1.71525,2468.2,2468.1,0.12672028]
[1728860368043,1.71525,2468.2,2468.0,1.20387]
[1728860368044,1.31,2468.2,2468.0,2.26704802]
[1728860368233,1.31,2468.2,2468.1,0.1267203]
[1728860368234,1.71525,2468.2,2468.1,0.1267203]
[1728860370049,0.40527,2468.1,2468.0,0.4146]
[1728860370252,0.81607,2468.1,2468.0,0.54132546]
[1728860370440,0.81607,2468.1,2468.0,0.69619586]
[1728860370750,0.81607,2468.1,2468.0,0.94660546]
[1728860371049,0.81607,2468.1,2468.0,1.10146719]
[1728860371950,0.81607,2468.1,2468.0,1.10146937]
[1728860372649,0.81607,2468.1,2468.0,0.12672465]
[1728860372850,2.12607,2468.1,2468.0,0.12672465]
[1728860377351,2.12607,2468.1,2468.0,0.28163905]
[1728860379452,0.40528,2468.0,2467.9,1.46847802]
[1728860379753,0.40528,2468.0,2467.9,1.95288622]
[1728860383255,0.40528,2468.0,2467.9,1.95290666]
[1728860383855,0.40528,2468.0,2467.9,1.54760666]
[1728860384353,3.81993266,2468.0,2467.9,0.28166494]
[1728860384563,3.81993266,2468.0,2467.9,0.12672731]
[1728860385154,3.81993266,2468.0,2467.9,0.53202731]
[1728860385651,4.22713266,2468.0,2467.9,0.53202731]
[1728860386982,3.82185266,2468.0,2467.8,0.4053]
[1728860387145,0.4053,2467.9,2467.8,0.4053]
[1728860387348,0.4053,2467.9,2467.8,0.68693833]
[1728860388447,2.50994266,2468.0,2467.9,0.4053]
[1728860388653,2.50994266,2468.0,2467.9,2.22403413]
[1728860388654,0.40529,2468.0,2467.9,2.22403413]
[1728860389163,2.10465266,2468.1,2467.9,1.81873413]
[1728860389354,2.10465266,2468.2,2468.1,0.40527]
[1728860389654,2.50990266,2468.3,2468.2,0.40525]
[1728860389859,2.50988266,2468.3,2468.2,1.84196328]
[1728860390159,0.40523,2468.3,2468.2,1.84196328]
[1728860390860,0.40523,2468.3,2468.2,1.84196082]
[1728860391153,2.50988266,2468.4,2468.3,0.40523]
[1728860391354,2.50988266,2468.4,2468.3,2.11743]
[1728860391550,2.52555266,2468.5,2468.3,1.83891082]
[1728860391751,4.24076266,2468.5,2468.4,0.40522]
[1728860391951,2.13611,2468.5,2468.4,0.40522]
[1728860392158,4.2454462,2468.5,2468.4,0.40522]
[1728860395255,0.40522,2468.4,2468.3,2.11743]
[1728860395458,0.40522,2468.4,2468.3,2.24413591]
[1728860397463,0.40522,2468.4,2468.3,2.24413636]
[1728860398762,0.40522,2468.4,2468.3,2.24413599]
[1728860399064,0.40522,2468.4,2468.3,2.24413596]
[1728860399264,0.40522,2468.4,2468.3,2.11743]
[1728860399455,0.40522,2468.4,2468.3,1.83890598]
[1728860399652,0.40525,2468.2,2468.1,4.017]
[1728860399855,1.71525,2468.2,2468.1,0.53531924]
[1728860400360,2.13425,2468.2,2468.1,0.53531924]
[1728860400557,1.729,2468.2,2467.9,1.87277802]
[1728860400765,1.71528,2468.0,2467.8,1.47137802]
[1728860400962,1.31,2468.0,2467.9,2.61372444]
[1728860401255,1.71528,2468.1,2467.9,2.76857019]
[1728860401458,1.71528,2468.1,2467.9,2.487]
[1728860401664,2.5283362,2468.2,2467.9,2.487]
[1728860401665,1.71528,2468.0,2467.9,2.487]
[1728860401962,1.71528,2468.0,2467.9,2.20842683]
[1728860402158,1.71528,2468.0,2467.9,0.51512683]
[1728860404157,1.71528,2468.0,2467.9,0.92042683]
[1728860404359,1.71528,2468.0,2467.9,2.23042683]
[1728860404665,1.71528,2468.0,2467.9,1.979974]
[1728860404870,1.71528,2468.0,2467.9,1.82512683]
[1728860405667,1.71528,2468.0,2467.9,2.23042683]
[1728860406062,0.40528,2468.0,2467.9,2.23042683]
[1728860406360,0.40528,2468.0,2467.9,1.97997306]
[1728860406554,2.5283362,2468.2,2467.9,1.97997306]
[1728860406763,2.5283362,2468.2,2468.0,1.43672683]
[1728860407065,0.40526,2468.2,2468.1,1.71527]
[1728860408062,2.5145962,2468.2,2468.1,1.71527]
[1728860408457,0.40526,2468.2,2468.1,1.71527]
[1728860408760,3.8066362,2468.3,2468.1,1.31]
[1728860409057,0.40525,2468.2,2468.1,1.71526]
[1728860409262,0.40525,2468.2,2468.1,1.84197473]
[1728860409656,1.71525,2468.2,2468.1,0.12671473]
[1728860409864,5.76725,2468.2,2468.1,0.12671473]
[1728860410057,0.40528,2468.0,2467.9,0.3884]
[1728860410263,1.71528,2468.0,2467.9,0.12672701]
[1728860410860,2.13418,2468.0,2467.9,0.12672701]
[1728860412163,2.13418,2468.0,2467.8,2.37317802]
[1728860412164,0.4053,2467.9,2467.8,1.31]
[1728860412360,0.4053,2467.9,2467.8,1.59160825]
[1728860412564,0.4053,2467.9,2467.8,3.26287234]
[1728860413371,0.4053,2467.9,2467.8,2.85755234]
[1728860413571,0.4053,2467.9,2467.8,2.85755053]
[1728860414771,0.4053,2467.9,2467.8,2.65478627]
[1728860414968,0.4053,2467.9,2467.8,1.59160825]
[1728860416878,0.4053,2467.9,2467.8,0.28160825]
[1728860417175,0.4053,2467.9,2467.8,0.12672952]
[1728860418070,0.4053,2467.9,2467.8,0.53204952]
[1728860418575,0.4053,2467.9,2467.8,1.84204952]
[1728860419677,0.4053,2467.9,2467.8,1.84205014]
[1728860420770,0.4053,2467.9,2467.8,1.43673014]
[1728860420976,1.7153,2467.9,2467.8,0.12673014]
[1728860421163,1.7153,2467.9,2467.5,1.06317802]
[1728860421164,0.40535,2467.6,2467.5,1.06317802]
[1728860421471,1.31,2467.6,2467.5,3.30948778]
[1728860421776,1.71535,2467.6,2467.5,3.26293652]
[1728860421976,2.13165,2467.6,2467.5,3.26293652]
[1728860422467,2.13165,2467.6,2467.5,1.99696819]
[1728860422668,2.13165,2467.6,2467.5,1.75014621]
[1728860423067,2.13165,2467.6,2467.5,1.95293684]
[1728860423273,2.13165,2467.6,2467.5,1.75014621]
[1728860423469,1.7263,2467.6,2467.5,1.75014621]
[1728860423673,1.7263,2467.6,2467.5,0.68696602]
[1728860423975,1.7263,2467.6,2467.5,3.06014404]
[1728860424274,3.1225862,2468.0,2467.5,6.91037261]
[1728860424481,0.40532,2467.8,2467.7,0.40532]
[1728860424874,0.40532,2467.8,2467.7,0.79542]
[1728860426582,1.71531,2467.9,2467.8,0.40531]
[1728860426777,1.71531,2467.9,2467.8,0.4106]
[1728860427088,1.71531,2467.9,2467.7,0.3941]
[1728860427089,0.40532,2467.8,2467.7,0.3941]
[1728860427285,1.71532,2467.8,2467.7,0.79943]
[1728860427884,1.71532,2467.8,2467.7,0.3941]
[1728860428080,0.40535,2467.6,2467.5,0.81596]
[1728860428280,1.71535,2467.6,2467.5,0.94270496]
[1728860428577,1.71535,2467.6,2467.5,0.12674496]
[1728860428976,0.40538,2467.4,2467.3,0.7768]
[1728860429176,1.71538,2467.4,2467.3,0.90355156]
[1728860429378,1.71538,2467.4,2467.3,1.30895156]
[1728860430781,1.31,2467.4,2467.3,1.30895156]
[1728860430982,1.71536,2467.6,2467.3,2.21355156]
[1728860431277,0.40536,2467.5,2467.4,0.81117]
[1728860431883,1.71536,2467.6,2467.5,0.40536]
[1728860434685,0.40536,2467.5,2467.4,2.12117]
[1728860434889,0.40536,2467.5,2467.4,0.81117]
[1728860436588,1.31,2467.6,2467.5,0.40536]
[1728860436589,1.71536,2467.6,2467.5,0.40536]
[1728860437185,1.31,2467.6,2467.4,0.4058]
[1728860437389,1.31,2467.6,2467.4,0.81117]
[1728860437390,0.40536,2467.5,2467.4,0.81117]
[1728860438109,1.71536,2467.6,2467.5,0.40536]
[1728860441396,0.3893,2467.7,2467.5,1.31]
[1728860441583,0.3893,2467.7,2467.6,0.40535]
[1728860441892,0.3893,2467.7,2467.6,1.71535]
[1728860442091,0.3893,2467.7,2467.6,1.84208632]
[1728860444796,1.6993,2467.7,2467.6,1.84208632]
[1728860444995,1.6993,2467.7,2467.6,0.53208632]
[1728860444996,2.10463,2467.7,2467.6,0.53208632]
[1728860445495,2.10463,2467.7,2467.6,0.40535]
[1728860445686,2.10463,2467.7,2467.6,0.53209152]
[1728860446786,2.10463,2467.7,2467.6,0.12674152]
[1728860447191,1.6993,2467.7,2467.4,1.06317802]
[1728860447396,0.40538,2467.4,2467.3,2.24536802]
[1728860447599,0.40538,2467.4,2467.3,2.72967603]
[1728860447787,0.81078,2467.4,2467.3,2.72967603]
[1728860449305,0.81078,2467.4,2467.3,4.03967712]
[1728860449306,0.4054,2467.4,2467.3,4.03967712]
[1728860449498,0.81078,2467.4,2467.3,4.03967712]
[1728860450198,0.81078,2467.4,2467.3,3.63428374]
[1728860450393,0.81078,2467.4,2467.3,4.03968374]
[1728860451801,0.81078,2467.4,2467.3,5.39576411]
[1728860452100,0.81078,2467.4,2467.3,4.03968374]
[1728860453199,0.81078,2467.4,2467.3,4.03970335]
[1728860453200,0.4054,2467.4,2467.3,4.03970335]
[1728860453403,1.31,2467.6,2467.3,4.99052954]
[1728860453595,2.11315,2467.7,2467.6,0.40535]
[1728860454494,0.40536,2467.6,2467.5,0.40535]
[1728860454694,1.31,2467.6,2467.5,0.53209418]
[1728860454898,1.71535,2467.6,2467.5,0.53209418]
[1728860455300,0.80314,2467.7,2467.6,0.40535]
[1728860455501,2.11314,2467.7,2467.6,0.53209418]
[1728860456103,2.11314,2467.7,2467.6,0.12674418]
[1728860456505,2.11314,2467.7,2467.6,0.53209418]
[1728860456710,2.11314,2467.7,2467.6,0.40535]
[1728860456904,0.40536,2467.6,2467.5,0.40536]
[1728860457100,1.71536,2467.6,2467.5,0.56019956]
[1728860457306,1.71536,2467.6,2467.5,0.68694419]
[1728860457705,1.71536,2467.6,2467.5,0.53210463]
[1728860458407,1.71536,2467.6,2467.5,0.68694652]
[1728860458609,1.71536,2467.6,2467.5,0.53210463]
[1728860459298,1.71536,2467.6,2467.5,0.68696604]
[1728860460300,1.71536,2467.6,2467.5,0.12674463]
[1728860463102,1.71535,2467.6,2467.5,0.12674963]
[1728860465401,3.8246862,2467.6,2467.5,0.12674963]
[1728860465814,1.71535,2467.6,2467.5,0.12674963]
[1728860466115,1.71535,2467.6,2467.5,0.28167858]
[1728860466811,1.71535,2467.6,2467.5,0.12674963]
[1728860467006,3.8246862,2467.6,2467.5,0.12674963]
[1728860467217,3.8246862,2467.6,2467.3,1.06317802]
[1728860467218,3.4193362,2467.6,2467.3,1.06317802]
[1728860467399,1.71538,2467.4,2467.3,1.06317802]
[1728860467607,1.71538,2467.4,2467.3,2.77857293]
[1728860467914,1.71538,2467.4,2467.3,0.12675457]
[1728860467915,8.2625162,2467.4,2467.3,0.12675457]
[1728860468115,0.40543,2467.1,2467.0,1.06317802]
[1728860468316,0.40543,2467.1,2466.7,1.06317802]
[1728860468317,3.41779305,2467.1,2466.7,1.06317802]
[1728860468610,0.7912,2467.0,2466.9,0.40546]
[1728860468912,2.51322305,2467.2,2467.0,0.40544]
[1728860469107,0.385,2467.1,2467.0,0.82284]
[1728860469307,1.695,2467.1,2467.0,0.94960839]
[1728860470313,1.31,2467.1,2467.0,1.10444662]
[1728860470812,1.31,2467.1,2467.0,1.10445057]
[1728860471309,1.31,2467.1,2467.0,0.94960719]
[1728860473409,1.71543,2467.1,2467.0,0.94960719]
[1728860473814,1.31,2467.1,2467.0,0.94960719]
[1728860474531,1.71543,2467.1,2467.0,0.82284]
[1728860474713,1.31,2467.1,2467.0,0.82284]
[1728860475014,1.31,2467.1,2467.0,0.94960916]
[1728860476415,1.31,2467.1,2467.0,0.82284]
[1728860476913,1.71543,2467.1,2467.0,0.82284]
[1728860478317,1.31,2467.1,2467.0,0.82284]
[1728860479515,1.31,2467.1,2467.0,0.82285]
[1728860479713,1.71543,2467.1,2467.0,0.82285]
[1728860482119,1.31,2467.1,2467.0,0.82285]
[1728860482615,1.31,2467.1,2467.0,2.13285]
[1728860482810,0.3834,2467.3,2467.0,1.8541638]
[1728860483120,0.40539,2467.4,2467.3,0.4054]
[1728860483311,2.13089,2467.4,2467.3,0.4054]
[1728860483618,2.13089,2467.4,2467.3,0.7934]
[1728860483619,1.7255,2467.4,2467.3,0.7934]
[1728860484824,1.7255,2467.4,2467.3,0.388]
[1728860485112,0.40543,2467.1,2467.0,0.82284]
[1728860485316,1.71543,2467.1,2467.0,0.82284]
[1728860485919,0.40545,2467.0,2466.9,0.82796]
[1728860486216,0.40545,2467.0,2466.6,1.46867802]
[1728860486217,4.5178,2467.0,2466.6,1.46867802]
[1728860486423,1.31,2466.7,2466.6,0.4055]
[1728860486724,1.31,2466.7,2466.6,0.53228678]
[1728860486914,1.695,2466.7,2466.6,0.4055]
[1728860487109,2.1005,2466.7,2466.6,0.4055]
[1728860489519,1.695,2466.7,2466.6,0.4055]
[1728860490326,2.1005,2466.7,2466.6,0.4055]
[1728860490718,1.695,2466.7,2466.6,0.4055]
[1728860492522,2.1005,2466.7,2466.6,0.4055]
[1728860492722,1.695,2466.7,2466.6,3.6133]
[1728860493225,2.1005,2466.7,2466.6,3.6133]
[1728860493427,2.1005,2466.7,2466.6,3.2078]
[1728860494325,6.1549,2466.7,2466.6,3.2078]
[1728860497322,0.40555,2466.4,2466.3,3.2078]
[1728860497521,1.71555,2466.4,2466.3,3.2078]
[1728860497920,1.71555,2466.4,2466.3,3.61336]
[1728860499317,1.31,2466.5,2466.3,4.5178]
[1728860499518,0.385,2466.7,2466.6,0.40551]
[1728860499730,1.31,2466.8,2466.7,0.4055]
[1728860499935,0.40545,2467.0,2466.9,0.40546]
[1728860499936,2.11315,2467.0,2466.9,0.40546]
[1728860500237,2.11316,2467.0,2466.8,1.18257]
[1728860500539,1.31,2466.9,2466.8,1.18258]
[1728860502632,1.71546,2466.9,2466.8,0.7771]
[1728860502934,1.31,2466.9,2466.8,1.18258]
[1728860503131,0.80316,2467.0,2466.8,1.18258]
[1728860503132,0.3977,2467.0,2466.9,0.40546]
[1728860503435,3.51179305,2467.4,2466.9,4.5178]
[1728860503736,2.74374132,2467.6,2467.4,0.40538]
[1728860503737,1.31,2467.5,2467.4,0.40538]
[1728860504038,1.31,2467.5,2467.4,0.78718]
[1728860504335,1.19854,2467.7,2467.4,2.0857]
[1728860504643,2.20179305,2468.0,2467.8,0.40531]
[1728860504829,6.10879305,2468.1,2467.9,1.31]
[1728860505139,5.71627,2468.1,2467.9,1.71529]
[1728860505326,5.71627,2468.1,2468.0,0.40528]
[1728860505327,5.311,2468.1,2468.0,0.40528]
[1728860505525,2.1032,2468.1,2467.9,1.31]
[1728860505823,2.50239305,2468.4,2467.5,4.68737802]
[1728860505824,0.40523,2468.3,2468.1,0.40526]
[1728860506238,2.85,2468.5,2467.8,3.2078]
[1728860506436,3.2078,2468.6,2468.3,0.40522]
[1728860506737,0.4052,2468.5,2467.9,3.91317802]
[1728860506941,0.4052,2468.5,2468.2,0.40524]
[1728860507131,0.4052,2468.5,2468.0,0.7999]
[1728860507431,0.4052,2468.5,2468.3,0.40523]
[1728860507932,0.40524,2468.3,2468.1,0.40526]
[1728860509133,3.6789,2468.4,2468.0,0.416]
[1728860509339,0.40526,2468.2,2468.0,0.82127]
[1728860510032,3.6789,2468.4,2468.0,0.416]
[1728860510237,0.40525,2468.3,2468.0,0.82127]
[1728860511029,0.40525,2468.3,2468.1,0.40527]
[1728860511529,3.6789,2468.4,2468.0,0.416]
[1728860511723,0.40526,2468.2,2468.0,0.82128]
[1728860511922,3.6789,2468.4,2468.0,0.82128]
[1728860511923,0.40523,2468.3,2468.0,0.82128]
[1728860512232,0.40523,2468.3,2467.8,3.2078]
[1728860512233,4.69198,2468.4,2467.9,0.4053]
[1728860512436,0.40528,2468.1,2467.9,0.4053]
[1728860513030,4.69198,2468.4,2467.8,3.2078]
[1728860513234,4.69198,2468.4,2467.9,0.40529]
[1728860513235,0.40528,2468.1,2467.9,0.40529]
[1728860513934,0.40529,2468.0,2467.8,3.2078]
[1728860514129,1.01309,2468.3,2467.8,3.2078]
[1728860514332,0.40528,2468.0,2467.9,0.4053]
[1728860514532,0.40528,2468.0,2467.8,3.61311]
[1728860514737,3.6789,2468.4,2467.8,3.2078]
[1728860514937,0.40529,2468.0,2467.9,0.40529]
[1728860516437,0.40529,2468.0,2467.7,0.3869]
[1728860516632,4.69198,2468.4,2467.8,0.40531]
[1728860516633,1.01312,2468.3,2467.8,0.40531]
[1728860516939,0.40529,2468.0,2467.8,0.40531]
[1728860519536,2.85,2468.2,2467.7,0.3869]
[1728860519852,0.82931,2467.9,2467.7,0.79222]
[1728860520239,0.82931,2467.9,2467.5,3.2078]
[1728860520240,0.424,2467.9,2467.5,3.2078]
[1728860520436,0.40534,2467.7,2467.5,0.40535]
[1728860520632,0.4128,2467.8,2467.4,0.3818]
[1728860520936,0.40533,2467.7,2467.6,0.40534]
[1728860521436,1.0132,2468.1,2467.6,0.40534]
[1728860521437,2.85,2468.2,2467.6,4.0528]
[1728860521732,2.85,2468.2,2467.9,0.40529]
[1728860521733,0.40527,2468.1,2467.9,0.40529]
[1728860521937,0.40528,2468.1,2467.9,0.40529]
[1728860522134,0.40528,2468.1,2467.8,0.4107]
[1728860522135,0.40527,2468.1,2467.8,0.81601]
[1728860522340,0.40529,2468.0,2467.9,0.4053]
[1728860522536,0.40528,2468.1,2467.9,0.4053]
[1728860522945,0.40528,2468.0,2467.9,0.4053]
[1728860523937,0.40528,2468.1,2467.9,0.4053]
[1728860524137,0.40528,2468.1,2467.9,0.799]
[1728860524942,3.274,2468.2,2467.9,0.799]
[1728860525245,0.40528,2468.0,2467.9,0.799]
[1728860525740,0.40528,2468.0,2467.9,0.3937]
[1728860525940,0.40528,2468.0,2467.8,0.4107]
[1728860525941,0.4053,2467.9,2467.8,0.4107]
[1728860526156,0.40533,2467.8,2467.6,0.40534]
[1728860526338,0.79923,2467.8,2467.6,0.80844]
[1728860526531,0.40533,2467.7,2467.6,0.80844]
[1728860526736,0.40535,2467.6,2467.5,3.2078]
[1728860526936,0.40538,2467.5,2467.3,1.20219]
[1728860527136,0.40536,2467.6,2467.4,0.40537]
[1728860527338,0.40536,2467.5,2467.4,0.40537]
[1728860527641,0.40536,2467.5,2467.3,0.7968]
[1728860527842,0.40538,2467.4,2467.3,0.7968]
[1728860528139,0.40538,2467.4,2467.3,0.4031]
[1728860528346,0.40542,2467.2,2467.1,0.40543]
[1728860528546,6.9028,2467.4,2467.0,0.4233]
[1728860528547,0.3933,2467.3,2467.0,0.4233]
[1728860528734,0.40542,2467.2,2467.0,0.4233]
[1728860528949,0.40542,2467.2,2467.0,0.82874]
[1728860529139,3.6011,2467.3,2466.9,0.4031]
[1728860529342,0.40545,2467.0,2466.9,0.4031]
[1728860529748,0.40547,2466.9,2466.7,0.40549]
[1728860529936,1.01361,2467.1,2466.6,0.8061]
[1728860530139,1.01361,2467.1,2466.7,0.4055]
[1728860530446,0.40547,2466.9,2466.7,0.4055]
[1728860530838,3.2721,2467.2,2466.6,0.8061]
[1728860531045,0.40547,2466.9,2466.7,0.40549]
[1728860532848,3.2721,2467.2,2466.6,0.8061]
[1728860533046,0.40549,2466.8,2466.6,1.21161]
[1728860536551,0.40547,2466.9,2466.7,0.40549]
[1728860536944,0.4055,2466.7,2466.6,0.3828]
[1728860537143,1.01359,2467.1,2466.6,0.3828]
[1728860537348,0.40549,2466.8,2466.6,0.7883]
[1728860537652,0.4055,2466.7,2466.6,0.7883]
[1728860539453,1.01359,2467.1,2466.7,0.40549]
[1728860539749,0.40548,2466.8,2466.7,0.40549]
[1728860539950,0.40547,2466.9,2466.7,0.40549]
[1728860541055,0.40547,2466.9,2466.6,0.3828]
[1728860541242,0.4221,2467.2,2466.6,0.3828]
[1728860541443,0.40542,2467.2,2467.0,0.40544]
[1728860541645,0.40544,2467.1,2466.9,0.40545]